fUSD/lending_fUSD_20260203
["ID","MTS","AMOUNT","RATE_DAILY","PERIOD"]
[404465069,1770161443324,-500.0,0.00017999,2]
[404465070,1770161443334,-500.0,0.00017999,2]
[404465071,1770161443343,-500.0,0.00017999,2]
[404465072,1770161443352,-373.00042525,0.00017999,2]
[404465073,1770161443361,-500.0,0.00017999,2]
[404465074,1770161443370,-500.0,0.00017999,2]
[404465075,1770161443379,-500.0,0.00017999,2]
[404465076,1770161443388,-500.0,0.00017999,2]
[404465077,1770161443397,-500.0,0.00017999,2]
[404465078,1770161443406,-500.0,0.00017999,2]
[404465079,1770161443416,-500.0,0.00017999,2]
[404465080,1770161443425,-500.0,0.00017999,2]
[404465081,1770161443435,-500.0,0.00017999,2]
[404465082,1770161443444,-500.0,0.00017999,2]
[404465083,1770161443453,-436.31667928,0.00017999,2]
[404465084,1770161443463,-396.55979187,0.00017999,2]
[404465085,1770161443472,-566.47,0.00017999,2]
[404465086,1770161443482,-566.47,0.00017999,2]
[404465087,1770161443492,-566.47,0.00017999,2]
[404465088,1770161443502,-566.47,0.00017999,2]
[404465089,1770161443511,-566.47,0.00017999,2]
[404465090,1770161443520,-566.47,0.00017999,2]
[404465091,1770161443529,-566.47,0.00017999,2]
[404465092,1770161443538,-566.47,0.00017999,2]
[404465093,1770161443548,-566.47,0.00017999,2]
[404465094,1770161443557,-566.47,0.00017999,2]
[404465095,1770161443566,-566.47,0.00017999,2]
[404465096,1770161443576,-566.47,0.00017999,2]
[404465097,1770161443585,-566.47,0.00017999,2]
[404465098,1770161443594,-566.47,0.00017999,2]
[404465099,1770161443604,-566.47,0.00017999,2]
[404465100,1770161443613,-566.47,0.00017999,2]
[404465101,1770161443622,-566.47,0.00017999,2]
[404465102,1770161443631,-500.0,0.00017999,2]
[404465103,1770161443641,-566.47,0.00017999,2]
[404465104,1770161443650,-500.0,0.00017999,2]
[404465105,1770161443660,-500.0,0.00017999,2]
[404465106,1770161443669,-566.47,0.00017999,2]
[404465107,1770161443679,-566.47,0.00017999,2]
[404465108,1770161443688,-500.0,0.00017999,2]
[404465109,1770161443701,-566.47,0.00017999,2]
[404465110,1770161443712,-500.0,0.00017999,2]
[404465111,1770161443721,-566.47,0.00017999,2]
[404465112,1770161443730,-500.0,0.00017999,2]
[404465113,1770161443740,-500.0,0.00017999,2]
[404465114,1770161443750,-566.59541256,0.00017999,2]
[404465115,1770161443759,-500.0,0.00017999,2]
[404465116,1770161443768,-500.0,0.00017999,2]
[404465117,1770161443778,-500.0,0.00017999,2]
[404465118,1770161443787,-500.0,0.00017999,2]
[404465119,1770161443797,-618.8360744,0.00017999,2]
[404465120,1770161443806,-500.0,0.00017999,2]
[404465121,1770161443815,-300.0,0.00017999,2]
[404465122,1770161443824,-666.0,0.00017999,2]
[404465123,1770161443834,-500.0,0.00017999,2]
[404465124,1770161443843,-500.0,0.00017999,2]
[404465125,1770161443852,-505.36940951,0.00017999,2]
[404465126,1770161443862,-300.0,0.00017999,2]
[404465127,1770161443872,-300.0,0.00017999,2]
[404465128,1770161443881,-666.0,0.00017999,2]
[404465129,1770161443892,-500.0,0.00017999,2]
[404465130,1770161443902,-500.0,0.00017999,2]
[404465131,1770161443911,-527.84,0.00017999,2]
[404465132,1770161443921,-527.84,0.00017999,2]
[404465134,1770161443930,-527.84,0.00017999,2]
[404465136,1770161443939,-527.84,0.00017999,2]
[404465137,1770161443948,-527.84,0.00017999,2]
[404465139,1770161443958,-527.84,0.00017999,2]
[404465142,1770161443967,-527.84,0.00017999,2]
[404465144,1770161443977,-527.84,0.00017999,2]
[404465146,1770161443986,-527.84,0.00017999,2]
[404465148,1770161443995,-397.28877508,0.00017999,2]
[404465150,1770161444004,-527.84,0.00017999,2]
[404465152,1770161444014,-527.84,0.00017999,2]
[404465154,1770161444022,-527.84,0.00017999,2]
[404465156,1770161444031,-527.84,0.00017999,2]
[404465158,1770161444040,-527.84,0.00017999,2]
[404465159,1770161444049,-527.84,0.00017999,2]
[404465160,1770161444059,-527.84,0.00017999,2]
[404465161,1770161444067,-527.84,0.00017999,2]
[404465162,1770161444077,-527.84,0.00017999,2]
[404465164,1770161444085,-527.84,0.00017999,2]
[404465166,1770161444094,-527.84,0.00017999,2]
[404465167,1770161444103,-527.84,0.00017999,2]
[404465168,1770161444112,-527.99942452,0.00017999,2]
[404465169,1770161444122,-500.0,0.00017999,2]
[404465170,1770161444131,-495.99852835,0.00017999,2]
[404465171,1770161444139,-592.50627165,0.00017999,2]
[404465172,1770161444149,-15675.0,0.00018,2]
[404465173,1770161444158,-4016956.40517586,0.00018,2]
[404465174,1770161444167,-151.614,0.00018,2]
[404465175,1770161444176,-706589.85419717,0.00018,2]
[404465176,1770161444191,-596.298,0.00018,2]
[404465177,1770161444228,-20900.0,0.00018,2]
[404465178,1770161444251,-1118.0,0.00018,2]
[404465179,1770161445195,-6430.35825063,0.00018,2]
[404465180,1770161445217,-5706.705,0.00018,2]
[404465181,1770161445229,-647.87718311,0.00018,2]
[404465182,1770161446176,-506.0,0.00018,2]
[404465183,1770161446275,-7600.0,0.00018,2]
[404465208,1770161813072,1000.507,0.00021,30]
[404465269,1770162632326,-222.35379804,0.00011017,2]
[404465271,1770162632335,-254.97899767,0.00011017,2]
[404465273,1770162632345,-195.0,0.00011017,2]
[404465275,1770162632355,-195.0,0.00011017,2]
[404465277,1770162632364,-195.0,0.0001108,2]
[404465279,1770162632373,-300.0,0.00011767,2]
[404465281,1770162632384,-1200.0,0.00011767,2]
[404465284,1770162632394,-134.61791251,0.00011768,2]
[404465286,1770162632464,-4655.84505265,0.00011768,2]
[404465287,1770162632476,-565.41868301,0.00011768,2]
[404465288,1770162632488,-3320.21696683,0.00011768,2]
[404465289,1770162632501,-4875.451385,0.00011768,2]
[404465290,1770162632512,-195.0,0.00012118,2]
[404465291,1770162632522,-195.0,0.00012118,2]
[404465292,1770162632532,-312.94891056,0.00012619,2]
[404465293,1770162632541,-195.87,0.00012712,2]
[404465294,1770162632550,-350.0,0.00012921,2]
[404465295,1770162632559,-500.0,0.00013123,2]
[404465296,1770162632569,-168.0,0.00013845,2]
[404465297,1770162632578,-235.0,0.0001394,2]
[404465298,1770162632588,-314.28,0.00014113,2]
[404465299,1770162632597,-397.0,0.00014338,2]
[404465300,1770162632607,-250.0,0.00014557,2]
[404465301,1770162632618,-300.0,0.00014784,2]
[404465303,1770162632628,-289.76862835,0.00014785,2]
[404465305,1770162632637,-52.55187808,0.0001481,2]
[404465307,1770162632649,-116.67191197,0.0001481,2]
[404465309,1770162632659,-3777.44580253,0.00014811,2]
[404465311,1770162632670,-11138.21642305,0.00014811,2]
[404465313,1770162632681,-9443.38008,0.00014811,2]
[404465315,1770162632692,-7211.0,0.00014811,2]
[404465316,1770162632703,-272.85182406,0.00014811,2]
[404465317,1770162632714,-631.73537893,0.00014811,2]
[404465318,1770162632725,-604.81359756,0.00014811,2]
[404465319,1770162632736,-330.74439359,0.00014811,2]
[404465320,1770162632747,-1623.11679656,0.00014811,2]
[404465321,1770162632758,-2519.10982703,0.00014811,2]
[404465322,1770162632770,-487.0242411,0.00014811,2]
[404465323,1770162632847,-6084.2403848,0.00014811,2]
[404465325,1770162638363,-1298.58005086,0.00014811,2]
[404465326,1770162638375,-432.46183533,0.00014811,2]
[404465327,1770162638386,-2602.00540864,0.00014811,2]
[404465328,1770162638397,-8919.99999995,0.00014811,2]
[404465329,1770162638409,-22039.245188,0.00014811,2]
[404465330,1770162638872,-2479.92269658,0.00014811,2]
[404465331,1770162638930,-7599.7,0.00014811,2]
[404465332,1770162638945,-294.55673714,0.00014811,2]
[404465338,1770162640788,-9316.91243427,0.00014811,2]
[404465339,1770162640815,-191328.54920002,0.00014811,2]
[404465340,1770162640826,-155.17651474,0.000149,2]
[404465341,1770162640836,-155.17651474,0.000149,2]
[404465342,1770162640845,-155.17651474,0.000149,2]
[404465343,1770162640854,-150.0,0.00014955,2]
[404465344,1770162640863,-500.0,0.00014956,2]
[404465345,1770162640872,-200.0,0.00014956,2]
[404465346,1770162640881,-500.0,0.00014956,2]
[404465347,1770162640890,-200.0,0.00014956,2]
[404465348,1770162640900,-151.0,0.00014956,2]
[404465349,1770162640910,-151.0,0.00014956,2]
[404465350,1770162640919,-151.0,0.00014956,2]
[404465351,1770162640929,-151.0,0.00014956,2]
[404465352,1770162640938,-151.0,0.00014956,2]
[404465353,1770162640949,-151.0,0.00014956,2]
[404465354,1770162640958,-151.0,0.00014956,2]
[404465355,1770162640967,-151.0,0.00014956,2]
[404465356,1770162640976,-151.0,0.00014956,2]
[404465357,1770162640986,-500.0,0.00014956,2]
[404465358,1770162640995,-151.0,0.00014956,2]
[404465359,1770162641005,-500.0,0.00014956,2]
[404465360,1770162641014,-151.0,0.00014956,2]
[404465361,1770162641023,-500.0,0.00014956,2]
[404465362,1770162641032,-500.0,0.00014956,2]
[404465363,1770162641041,-500.0,0.00014956,2]
[404465364,1770162641051,-500.0,0.00014956,2]
[404465365,1770162641060,-500.0,0.00014956,2]
[404465366,1770162641069,-355.50842419,0.00014956,2]
[404465367,1770162641078,-151.0,0.00014956,2]
[404465368,1770162641087,-151.0,0.00014956,2]
[404465369,1770162641100,-151.0,0.00014956,2]
[404465371,1770162641110,-151.0,0.00014956,2]
[404465372,1770162641119,-151.0,0.00014956,2]
[404465373,1770162641128,-151.0,0.00014956,2]
[404465374,1770162641140,-262.47393133,0.00014956,2]
[404465375,1770162641150,-500.0,0.00014956,2]
[404465376,1770162641159,-2027.81,0.00014965,2]
[404465377,1770162641170,-52605.77,0.00014975,2]
[404465378,1770162641179,-502.5925885,0.00014999,2]
[404465379,1770162641188,-1244.42,0.00014999,2]
[404465380,1770162641197,-1244.42,0.00014999,2]
[404465381,1770162641206,-1244.42,0.00014999,2]
[404465382,1770162641215,-500.0,0.00014999,2]
[404465383,1770162641224,-150.61782351,0.00014999,2]
[404465384,1770162641273,-349.38217649,0.00014999,2]
[404465385,1770162641282,-500.0,0.00014999,2]
[404465386,1770162641291,-500.0,0.00014999,2]
[404465387,1770162641300,-154.17727181,0.00014999,2]
[404465388,1770162641309,-500.0,0.00014999,2]
[404465389,1770162641318,-500.0,0.00014999,2]
[404465390,1770162641327,-500.0,0.00014999,2]
[404465391,1770162641337,-500.0,0.00014999,2]
[404465392,1770162641346,-500.0,0.00014999,2]
[404465393,1770162641355,-495.99852835,0.00014999,2]
[404465394,1770162641364,-508.48,0.00014999,2]
[404465395,1770162641373,-508.48,0.00014999,2]
[404465396,1770162641382,-508.48,0.00014999,2]
[404465397,1770162641391,-500.0,0.00014999,2]
[404465398,1770162641400,-500.0,0.00014999,2]
[404465399,1770162641410,-500.0,0.00014999,2]
[404465400,1770162641419,-500.0,0.00014999,2]
[404465401,1770162641428,-500.0,0.00014999,2]
[404465402,1770162641436,-500.0,0.00014999,2]
[404465403,1770162641446,-527.84,0.00014999,2]
[404465404,1770162641455,-527.84,0.00014999,2]
[404465405,1770162641462,-527.84,0.00014999,2]
[404465406,1770162641471,-500.0,0.00014999,2]
[404465407,1770162641479,-500.0,0.00014999,2]
[404465408,1770162641487,-500.0,0.00014999,2]
[404465409,1770162641496,-500.0,0.00014999,2]
[404465410,1770162641505,-500.0,0.00014999,2]
[404465411,1770162641514,-500.0,0.00014999,2]
[404465412,1770162641523,-250.0,0.00015,2]
[404465413,1770162641534,-433.78,0.00015093,2]
[404465414,1770162641543,-433.78,0.00015121,2]
[404465415,1770162641553,-433.78,0.00015149,2]
[404465416,1770162641562,-433.78,0.00015177,2]
[404465417,1770162641572,-433.78,0.00015204,2]
[404465418,1770162641582,-500.0,0.0001523,2]
[404465419,1770162641591,-433.78,0.00015232,2]
[404465420,1770162641600,-433.78,0.0001526,2]
[404465421,1770162641609,-433.78,0.00015288,2]
[404465422,1770162641618,-433.78,0.00015316,2]
[404465423,1770162641628,-433.78,0.00015343,2]
[404465424,1770162641637,-433.78,0.00015371,2]
[404465425,1770162641646,-433.78,0.00015399,2]
[404465426,1770162641655,-433.78,0.00015427,2]
[404465427,1770162641664,-433.78,0.00015455,2]
[404465428,1770162641673,-433.78,0.00015482,2]
[404465429,1770162641682,-500.0,0.00015504,2]
[404465430,1770162641691,-433.78,0.0001551,2]
[404465431,1770162641700,-433.78,0.00015538,2]
[404465432,1770162641709,-433.78,0.00015566,2]
[404465433,1770162641718,-433.78,0.00015594,2]
[404465434,1770162641727,-433.78,0.00015621,2]
[404465435,1770162641736,-397.0,0.0001563,2]
[404465436,1770162641746,-2027.81,0.00015713,2]
[404465437,1770162641756,-214.41,0.00015741,2]
[404465438,1770162641764,-500.0,0.00015778,2]
[404465439,1770162641774,-160.0,0.00015973,2]
[404465440,1770162641783,-1244.42,0.00015999,2]
[404465441,1770162641792,-1244.42,0.00015999,2]
[404465442,1770162641801,-1244.42,0.00015999,2]
[404465443,1770162641811,-1244.42,0.00015999,2]
[404465444,1770162641820,-1244.42,0.00015999,2]
[404465445,1770162641830,-1244.42,0.00015999,2]
[404465446,1770162641840,-500.0,0.00015999,2]
[404465447,1770162641849,-500.0,0.00015999,2]
[404465448,1770162641859,-500.0,0.00015999,2]
[404465449,1770162641869,-500.0,0.00015999,2]
[404465450,1770162641878,-500.0,0.00015999,2]
[404465451,1770162641889,-500.0,0.00015999,2]
[404465452,1770162641899,-500.0,0.00015999,2]
[404465453,1770162641908,-500.0,0.00015999,2]
[404465454,1770162641917,-500.0,0.00015999,2]
[404465455,1770162641927,-500.0,0.00015999,2]
[404465456,1770162641936,-500.0,0.00015999,2]
[404465457,1770162641946,-500.0,0.00015999,2]
[404465458,1770162641955,-508.48,0.00015999,2]
[404465459,1770162641964,-508.48,0.00015999,2]
[404465460,1770162641974,-508.48,0.00015999,2]
[404465461,1770162641984,-508.48,0.00015999,2]
[404465462,1770162641993,-508.48,0.00015999,2]
[404465463,1770162642003,-508.48,0.00015999,2]
[404465464,1770162642012,-500.0,0.00015999,2]
[404465465,1770162642021,-500.0,0.00015999,2]
[404465466,1770162642030,-500.0,0.00015999,2]
[404465467,1770162642040,-505.36940951,0.00015999,2]
[404465468,1770162642051,-500.0,0.00015999,2]
[404465469,1770162642063,-500.0,0.00015999,2]
[404465470,1770162642073,-500.0,0.00015999,2]
[404465471,1770162642082,-500.0,0.00015999,2]
[404465472,1770162642095,-411.72693123,0.00015999,2]
[404465473,1770162642104,-527.84,0.00015999,2]
[404465474,1770162642114,-527.84,0.00015999,2]
[404465475,1770162642126,-527.84,0.00015999,2]
[404465476,1770162642135,-527.84,0.00015999,2]
[404465477,1770162642143,-527.84,0.00015999,2]
[404465478,1770162642151,-527.84,0.00015999,2]
[404465479,1770162642160,-500.0,0.00015999,2]
[404465480,1770162642169,-500.0,0.00015999,2]
[404465481,1770162642178,-500.0,0.00015999,2]
[404465482,1770162642187,-500.0,0.00015999,2]
[404465483,1770162642196,-500.0,0.00015999,2]
[404465484,1770162642205,-500.0,0.00015999,2]
[404465485,1770162642214,-500.0,0.00015999,2]
[404465486,1770162642224,-500.0,0.00015999,2]
[404465487,1770162642232,-500.0,0.00015999,2]
[404465488,1770162642242,-500.0,0.00015999,2]
[404465489,1770162642251,-500.0,0.00015999,2]
[404465490,1770162642260,-500.0,0.00015999,2]
[404465491,1770162642270,-397.0,0.00016007,2]
[404465492,1770162642280,-500.0,0.00016034,2]
[404465493,1770162642289,-9999.99,0.00016116,2]
[404465494,1770162642298,-150.99,0.00016116,2]
[404465495,1770162642316,-300.0,0.00016184,2]
[404465496,1770162642327,-500.0,0.00016438,2]
[404465497,1770162642337,-500.0,0.00016438,2]
[404465498,1770162642347,-235.22102486,0.00016438,2]
[404465499,1770162642356,-2027.81,0.00016461,2]
[404465500,1770162642365,-500.0,0.00016466,2]
[404465501,1770162642374,-214.41,0.00016616,2]
[404465502,1770162642383,-973.65264847,0.00016704,2]
[404465503,1770162642392,-839.0,0.0001672,2]
[404465504,1770162642402,-500.0,0.0001673,2]
[404465505,1770162642411,-500.87599875,0.0001673,2]
[404465506,1770162642421,-500.64906369,0.0001673,2]
[404465507,1770162642430,-163.3987975,0.0001673,2]
[404465508,1770162642440,-500.0,0.0001673,2]
[404465509,1770162642450,-661.5,0.0001673,2]
[404465510,1770162642459,-500.0,0.0001673,2]
[404465511,1770162642469,-500.0,0.0001673,2]
[404465512,1770162642479,-163.17509368,0.0001673,2]
[404465513,1770162642488,-193.42410424,0.0001673,2]
[404465514,1770162642498,-500.81916532,0.0001673,2]
[404465515,1770162642507,-200.90009189,0.0001673,2]
[404465516,1770162642517,-500.0,0.0001673,2]
[404465517,1770162642527,-464.55637518,0.0001673,2]
[404465518,1770162642536,-500.0,0.0001673,2]
[404465519,1770162642546,-500.0,0.0001673,2]
[404465520,1770162642556,-500.0,0.0001673,2]
[404465521,1770162642565,-500.27732573,0.0001673,2]
[404465522,1770162642575,-574.23426671,0.0001673,2]
[404465523,1770162642585,-500.0,0.0001673,2]
[404465524,1770162642596,-500.0,0.0001673,2]
[404465525,1770162642606,-505.54148185,0.0001673,2]
[404465526,1770162642616,-500.0,0.0001673,2]
[404465527,1770162642625,-500.0,0.0001673,2]
[404465528,1770162642636,-500.93680817,0.0001673,2]
[404465529,1770162642646,-500.0,0.0001673,2]
[404465530,1770162642656,-500.0,0.0001673,2]
[404465531,1770162642665,-500.0,0.0001673,2]
[404465532,1770162642674,-501.55601452,0.0001673,2]
[404465533,1770162642683,-500.0,0.0001673,2]
[404465534,1770162642693,-500.0,0.0001673,2]
[404465535,1770162642703,-501.66558046,0.0001673,2]
[404465536,1770162642712,-500.0,0.0001673,2]
[404465537,1770162642722,-500.0,0.0001673,2]
[404465538,1770162642731,-151.14630637,0.0001673,2]
[404465539,1770162642741,-500.86578537,0.0001673,2]
[404465540,1770162642751,-500.58962074,0.0001673,2]
[404465541,1770162642760,-500.5484423,0.0001673,2]
[404465542,1770162642770,-336.54043912,0.0001673,2]
[404465543,1770162642779,-160.59346799,0.0001673,2]
[404465544,1770162642789,-500.0,0.0001673,2]
[404465545,1770162642798,-500.0,0.0001673,2]
[404465546,1770162642808,-500.0,0.0001673,2]
[404465547,1770162642817,-4583.81,0.0001691,2]
[404465548,1770162642827,-300.0,0.00017,2]
[404465549,1770162642836,-661.5,0.00017004,2]
[404465550,1770162642845,-2836.0,0.0001704,2]
[404465551,1770162642855,-839.0,0.0001704,2]
[404465552,1770162642864,-839.0,0.0001704,2]
[404465553,1770162642874,-839.0,0.0001704,2]
[404465554,1770162642884,-839.0,0.0001704,2]
[404465555,1770162642893,-174.61919141,0.00017099,2]
[404465556,1770162642902,-322.6107,0.00017099,2]
[404465557,1770162642912,-200.0,0.00017099,2]
[404465558,1770162642920,-163.12428816,0.00017099,2]
[404465559,1770162642930,-277.35679052,0.00017099,2]
[404465560,1770162642939,-209.40437684,0.00017099,2]
[404465561,1770162642949,-209.40437684,0.00017099,2]
[404465562,1770162642958,-578.20924308,0.00017099,2]
[404465563,1770162642967,-721.12765535,0.00017099,2]
[404465564,1770162642976,-500.0,0.00017099,2]
[404465565,1770162642986,-1428.38747117,0.00017099,2]
[404465566,1770162642996,-500.0,0.00017099,2]
[404465567,1770162643005,-500.0,0.00017099,2]
[404465569,1770162643015,-500.0,0.00017099,2]
[404465570,1770162643025,-500.0,0.00017099,2]
[404465571,1770162643035,-500.0,0.00017099,2]
[404465572,1770162643045,-500.0,0.00017099,2]
[404465573,1770162643055,-500.0,0.00017099,2]
[404465574,1770162643064,-209.40437684,0.00017099,2]
[404465575,1770162643074,-500.0,0.00017099,2]
[404465576,1770162643083,-500.0,0.00017099,2]
[404465577,1770162643099,-500.0,0.00017099,2]
[404465578,1770162643109,-217.15233878,0.00017154,2]
[404465579,1770162643119,-406.0,0.00017164,2]
[404465580,1770162643131,-200.0,0.00017174,2]
[404465581,1770162643141,-2500.0,0.00017178,2]
[404465582,1770162643151,-3443.0,0.000172,2]
[404465583,1770162643163,-225.18697532,0.00017209,2]
[404465584,1770162643174,-2027.81,0.0001721,2]
[404465585,1770162643184,-1000.0,0.0001726,2]
[404465586,1770162643193,-233.51889341,0.00017264,2]
[404465587,1770162643203,-1000.0,0.00017278,2]
[404465588,1770162643212,-1000.0,0.00017278,2]
[404465589,1770162643223,-500.61825872,0.00017278,2]
[404465590,1770162643238,-1000.0,0.00017278,2]
[404465591,1770162643249,-487.32196984,0.00017278,2]
[404465592,1770162643263,-1000.0,0.00017278,2]
[404465593,1770162643273,-1000.0,0.00017278,2]
[404465594,1770162643282,-502.73500783,0.00017278,2]
[404465595,1770162643291,-1000.0,0.00017278,2]
[404465596,1770162643300,-1000.0,0.00017278,2]
[404465597,1770162643310,-1000.0,0.00017278,2]
[404465598,1770162643319,-500.7588569,0.00017278,2]
[404465599,1770162643328,-1000.0,0.00017278,2]
[404465600,1770162643337,-1138.52784923,0.00017278,2]
[404465601,1770162643346,-335.67208162,0.00017278,2]
[404465602,1770162643355,-1000.0,0.00017278,2]
[404465603,1770162643365,-914.39055096,0.00017278,2]
[404465604,1770162643620,-1000.0,0.00017278,2]
[404465605,1770162643630,-995.9953446,0.00017278,2]
[404465606,1770162643639,-1000.0,0.00017278,2]
[404465607,1770162643648,-1000.0,0.00017278,2]
[404465608,1770162643657,-1000.0,0.00017278,2]
[404465609,1770162643666,-661.5,0.00017278,2]
[404465610,1770162643675,-973.65264847,0.00017302,2]
[404465611,1770162643684,-242.15909246,0.00017319,2]
[404465612,1770162643693,-316.0,0.0001736,2]
[404465613,1770162643702,-5529.0,0.00017373,2]
[404465614,1770162643711,-251.11897888,0.00017374,2]
[404465615,1770162643720,-2688.76715354,0.00017407,2]
[404465616,1770162643729,-7095.69905863,0.00017407,2]
[404465617,1770162643739,-12517.65421951,0.00017407,2]
[404465618,1770162643749,-18725.66208066,0.00017407,2]
[404465619,1770162643758,-25336.4859,0.00017407,2]
[404465620,1770162643767,-260.4103811,0.00017429,2]
[404465621,1770162643776,-270.0455652,0.00017484,2]
[404465622,1770162643785,-214.41,0.0001749,2]
[404465623,1770162643795,-1000.0,0.00017534,2]
[404465624,1770162643803,-280.03725112,0.00017539,2]
[404465625,1770162643812,-661.5,0.00017552,2]
[404465626,1770162643822,-4404.0,0.0001756,2]
[404465627,1770162643831,-290.39862941,0.00017594,2]
[404465628,1770162643840,-1132.53759821,0.0001764,2]
[404465629,1770162643849,-955.15967143,0.0001764,2]
[404465630,1770162643859,-293.93728109,0.0001764,2]
[404465631,1770162643868,-162.705,0.0001764,2]
[404465632,1770162643877,-1220.843,0.0001764,2]
[404465633,1770162643887,-181.08010149,0.00017647,2]
[404465634,1770162643897,-200.0,0.00017647,2]
[404465635,1770162643907,-287.61899177,0.00017647,2]
[404465636,1770162643917,-217.15233878,0.00017647,2]
[404465637,1770162643927,-1481.23780761,0.00017647,2]
[404465638,1770162643938,-217.15233878,0.00017647,2]
[404465639,1770162643949,-301.1433787,0.00017649,2]
[404465640,1770162643959,-1142.0,0.0001768,2]
[404465641,1770162643968,-839.0,0.0001768,2]
[404465642,1770162643978,-839.0,0.0001768,2]
[404465643,1770162643987,-839.0,0.0001768,2]
[404465644,1770162643996,-163.75756357,0.00017712,2]
[404465645,1770162644006,-10140.7131,0.00017726,2]
[404465646,1770162644016,-163.75756352,0.00017733,2]
[404465647,1770162644025,-839.0,0.00017746,2]
[404465648,1770162644034,-163.75756352,0.00017754,2]
[404465649,1770162644044,-397.0,0.00017769,2]
[404465650,1770162644052,-163.75756352,0.00017775,2]
[404465651,1770162644062,-5888.0,0.00017788,2]
[404465652,1770162644071,-163.75756352,0.00017796,2]
[404465653,1770162644080,-1000.0,0.00017808,2]
[404465654,1770162644090,-1244.42,0.00017811,2]
[404465655,1770162644103,-500.0,0.00017811,2]
[404465656,1770162644112,-500.0,0.00017811,2]
[404465657,1770162644121,-508.48,0.00017811,2]
[404465658,1770162644130,-527.84,0.00017811,2]
[404465659,1770162644140,-500.0,0.00017811,2]
[404465660,1770162644149,-558.31479011,0.00017811,2]
[404465661,1770162644159,-162.292,0.00017812,2]
[404465662,1770162644169,-1434.995,0.00017812,2]
[404465663,1770162644177,-616.0,0.00017812,2]
[404465664,1770162644186,-3509.866,0.00017812,2]
[404465665,1770162644196,-1335.0,0.00017812,2]
[404465666,1770162644205,-1271.0,0.00017812,2]
[404465667,1770162644214,-150.0,0.00017812,2]
[404465668,1770162644223,-6580.0,0.00017812,2]
[404465669,1770162644232,-568.0,0.00017812,2]
[404465670,1770162644241,-2445.0,0.00017812,2]
[404465671,1770162644250,-163.75756352,0.00017816,2]
[404465672,1770162644259,-2000.0,0.0001782,2]
[404465673,1770162644268,-2000.0,0.0001782,2]
[404465674,1770162644277,-2000.0,0.0001782,2]
[404465675,1770162644286,-2000.0,0.0001782,2]
[404465676,1770162644295,-634.52409023,0.0001782,2]
[404465677,1770162644304,-1500.0,0.00017826,2]
[404465678,1770162644313,-496.09583646,0.00017826,2]
[404465679,1770162644322,-465.16495418,0.00017826,2]
[404465681,1770162644331,-1501.46388009,0.00017826,2]
[404465682,1770162644340,-1371.81162767,0.00017826,2]
[404465683,1770162644349,-1451.590897,0.00017826,2]
[404465684,1770162644358,-1500.0,0.00017826,2]
[404465685,1770162644367,-1500.0,0.00017826,2]
[404465686,1770162644376,-1500.0,0.00017826,2]
[404465687,1770162644385,-1500.0,0.00017826,2]
[404465689,1770162644395,-1004.38832369,0.00017826,2]
[404465690,1770162644404,-1500.0,0.00017826,2]
[404465691,1770162644413,-1500.0,0.00017826,2]
[404465692,1770162644422,-1500.0,0.00017826,2]
[404465693,1770162644431,-661.5,0.00017826,2]